fUSD/lending_fUSD_20240217
["ID","MTS","AMOUNT","RATE_DAILY","PERIOD"]
[314285412,1708156232504,-150.0,0.00032999,3]
[314285413,1708156232513,-765.1640144,0.00033,2]
[314285414,1708156232525,-1934.24120179,0.00033,2]
[314285415,1708156232550,-5605.88473881,0.00033,2]
[314285416,1708156232562,-284.49703418,0.00033,2]
[314285417,1708156232640,-1809.51341481,0.00033,2]
[314285419,1708156232653,-963.69070974,0.00033,2]
[314285420,1708156232662,-150.0,0.00034548,10]
[314285421,1708156232673,-1702.66242822,0.00037,15]
[314285422,1708156232740,-1259.58718006,0.00037,15]
[314285423,1708156232752,-2037.75039172,0.00037,15]
[314285424,1708156232762,-478.11,0.00037585,2]
[314285425,1708156232772,-156.37430266,0.00037782,2]
[314285426,1708156232781,-332.82810435,0.00037882,4]
[314285427,1708156232791,-57.38248665,0.00037882,2]
[314285432,1708156240285,-275.35751335,0.00037882,2]
[314285433,1708156240295,-314.77657562,0.00037882,2]
[314285434,1708156240342,-185.21342438,0.00037882,2]
[314285435,1708156240351,-145.9792193,0.00037981,120]
[314285436,1708156240399,-160.63741308,0.00037981,120]
[314285437,1708156240409,-1261.84905037,0.00037982,2]
[314285438,1708156240418,-13419.0995,0.00037983,2]
[314285439,1708156240428,-156.37430266,0.00038805,2]
[314285440,1708156240437,-152.07,0.00039076,2]
[314285441,1708156240446,-1129.33,0.00039272,2]
[314285442,1708156240455,-250.0,0.0003929,2]
[314285443,1708156240464,-682.52,0.00039291,2]
[314285444,1708156240474,-164.82,0.00039296,2]
[314285445,1708156240483,-574.51,0.00039312,2]
[314285446,1708156240493,-423.79,0.00039313,15]
[314285447,1708156240502,-11900.0,0.00039328,2]
[314285448,1708156240511,-205.0,0.00039333,2]
[314285449,1708156240521,-8166.0,0.000394,3]
[314285450,1708156240530,-986.23,0.0003943,2]
[314285451,1708156240539,-250.0,0.00039434,111]
[314285452,1708156240549,-250.0,0.00039439,2]
[314285453,1708156240558,-154.3,0.00039442,2]
[314285454,1708156240568,-203.85,0.00039447,2]
[314285455,1708156240578,-2000.0,0.00039473,2]
[314285456,1708156240587,-800.0,0.00039506,2]
[314285457,1708156240597,-196.24,0.00039506,2]
[314285458,1708156240606,-8688.08,0.00039506,2]
[314285459,1708156240615,-150.0,0.00039527,2]
[314285461,1708156240628,-200.0,0.00039685,2]
[314285462,1708156240639,-152.9,0.00039734,2]
[314285463,1708156240649,-175.8,0.000398,2]
[314285464,1708156240659,-156.37430266,0.00039828,2]
[314285465,1708156240668,-478.11,0.00039849,2]
[314285467,1708156240678,-806.37317567,0.00039869,11]
[314285468,1708156240687,-150.1,0.000399,2]
[314285470,1708156240696,-2998.00029892,0.00039903,12]
[314285472,1708156240706,-4480.3241587,0.00039915,12]
[314285474,1708156240716,-3305.99403158,0.0004,4]
[314285476,1708156240725,-1041.71183142,0.0004,2]
[314285478,1708156240734,-2000.0,0.000405,2]
[314285481,1708156240744,-171.0,0.000406,7]
[314285483,1708156240753,-4025.965254,0.000407,2]
[314285485,1708156240763,-30638.1474,0.00040794,2]
[314285487,1708156240773,-150.0,0.00040808,2]
[314285489,1708156240783,-156.37430266,0.00040852,2]
[314285491,1708156240793,-150.0,0.00040895,3]
[314285493,1708156240803,-164.918637,0.00040895,30]
[314285495,1708156240813,-333.0,0.00040895,2]
[314285497,1708156240822,-15852.83587305,0.00040895,120]
[314285499,1708156240832,-151.0,0.00040895,30]
[314285501,1708156240841,-150.0,0.00040895,30]
[314285503,1708156240852,-203.85,0.00040927,2]
[314285504,1708156240862,-162.74,0.0004093,2]
[314285506,1708156240872,-682.52,0.00040934,2]
[314285508,1708156240881,-4480.12805229,0.00040952,4]
[314285510,1708156240890,-167.53,0.00040953,2]
[314285512,1708156240900,-943.99661788,0.00041,7]
[314285514,1708156240909,-205.0,0.00041056,10]
[314285516,1708156240918,-171.0,0.00041148,7]
[314285518,1708156240928,-10229.38164732,0.00041319,3]
[314285519,1708156240937,-150.0,0.00041399,2]
[314285520,1708156240946,-6042.07108632,0.000414,3]
[314285521,1708156240956,-150.0,0.00041419,2]
[314285522,1708156240965,-322.0563,0.00041499,2]
[314285523,1708156240974,-4698.9682,0.000415,2]
[314285524,1708156240983,-1000.0,0.000415,2]
[314285525,1708156240993,-1165.05509347,0.000415,5]
[314285526,1708156241002,-780.2017691,0.000415,10]
[314285527,1708156241011,-1000.0,0.000415,2]
[314285528,1708156241020,-266.16367082,0.00041591,12]
[314285529,1708156241030,-560.55783652,0.00041599,4]
[314285530,1708156241039,-2504.26815191,0.00041599,2]
[314285531,1708156241049,-4562.795,0.000416,2]
[314285532,1708156241058,-25024.1554,0.000416,2]
[314285533,1708156241067,-100000.0,0.000416,2]
[314285534,1708156241076,-200.0,0.00041663,7]
[314285535,1708156241085,-800.0,0.00041663,10]
[314285536,1708156241095,-200.0,0.00041663,7]
[314285537,1708156241104,-200.0,0.00041663,20]
[314285538,1708156241113,-200.0,0.00041663,20]
[314285539,1708156241123,-200.0,0.00041664,20]
[314285540,1708156241132,-200.0,0.00041664,20]
[314285541,1708156241141,-800.0,0.00041664,10]
[314285542,1708156241150,-200.0,0.00041664,20]
[314285543,1708156241160,-200.0,0.00041664,20]
[314285544,1708156241169,-200.0,0.00041664,20]
[314285545,1708156241178,-200.0,0.00041664,20]
[314285546,1708156241187,-171.0,0.00041696,7]
[314285547,1708156241196,-230.08544777,0.00041698,30]
[314285548,1708156241205,-196.3269777,0.000417,3]
[314285549,1708156241214,-383.46,0.000417,2]
[314285550,1708156241224,-141063.9845,0.000417,2]
[314285551,1708156241233,-500.0,0.0004179,2]
[314285552,1708156241242,-500.0,0.0004179,2]
[314285553,1708156241252,-500.0,0.0004179,2]
[314285554,1708156241262,-289.0985,0.0004179,2]
[314285555,1708156241272,-1000.0,0.0004179,2]
[314285556,1708156241281,-1000.0,0.0004179,2]
[314285557,1708156241290,-1000.0,0.0004179,2]
[314285558,1708156241300,-1000.0,0.0004179,2]
[314285559,1708156241309,-1000.0,0.0004179,2]
[314285560,1708156241318,-1000.0,0.0004179,2]
[314285561,1708156241328,-1000.0,0.0004179,2]
[314285562,1708156241338,-1000.0,0.0004179,2]
[314285563,1708156241347,-1000.0,0.0004179,2]
[314285564,1708156241357,-434.9416,0.0004179,2]
[314285565,1708156241367,-164.87,0.0004179,2]
[314285566,1708156241378,-1212.91218193,0.000418,4]
[314285567,1708156241388,-155.0,0.000418,4]
[314285568,1708156241399,-4010.454,0.000418,2]
[314285569,1708156241409,-3943.2958961,0.000418,7]
[314285570,1708156241419,-154.9,0.000418,4]
[314285571,1708156241436,-153.54,0.000418,4]
[314285572,1708156241448,-153.54,0.000418,4]
[314285573,1708156241458,-153.54,0.000418,4]
[314285574,1708156241467,-153.54,0.000418,4]
[314285575,1708156241477,-153.54,0.000418,4]
[314285576,1708156241487,-153.54,0.000418,4]
[314285577,1708156241496,-153.54,0.000418,4]
[314285578,1708156241506,-153.54,0.000418,4]
[314285579,1708156241516,-153.54,0.000418,4]
[314285580,1708156241526,-153.54,0.000418,4]
[314285581,1708156241537,-153.54,0.000418,4]
[314285582,1708156241548,-153.54,0.000418,4]
[314285583,1708156241559,-153.54,0.000418,4]
[314285584,1708156241569,-153.54,0.000418,4]
[314285585,1708156241580,-153.54,0.000418,4]
[314285586,1708156241590,-2000.0,0.000418,7]
[314285587,1708156241601,-200.0,0.000418,7]
[314285588,1708156241611,-2411.58289,0.000418,10]
[314285589,1708156241621,-515.28146836,0.000418,4]
[314285590,1708156241632,-2000.0,0.000418,7]
[314285591,1708156241643,-200.0,0.000418,7]
[314285592,1708156241653,-152.9,0.00041804,2]
[314285593,1708156241663,-158.23203844,0.00041843,30]
[314285594,1708156241673,-156.37430266,0.00041875,2]
[314285595,1708156241684,-402.56655651,0.00041899,4]
[314285596,1708156241693,-511.96141685,0.00041949,16]
[314285597,1708156241703,-153.50306325,0.00041949,14]
[314285598,1708156241713,-81071.8887111,0.0004199,8]
[314285599,1708156241723,-4714.8579867,0.00041991,2]
[314285600,1708156241940,-135068.0542757,0.00041991,2]
[314285601,1708156241951,-150.01,0.00041996,2]
[314285602,1708156241961,-3317.68767406,0.00041996,2]
[314285604,1708156241971,-2000.0,0.00041997,7]
[314285605,1708156241980,-200.0,0.00041997,7]
[314285606,1708156241989,-2000.0,0.00041997,7]
[314285607,1708156242001,-200.0,0.00041997,7]
[314285608,1708156242039,-153.8007837,0.00041997,2]
[314285609,1708156242049,-7481.46430698,0.00041999,4]
[314285610,1708156242058,-41910.03547836,0.00042,5]
[314285611,1708156242067,-7464.35666775,0.00042,2]
[314285612,1708156242076,-543.87368819,0.00042,30]
[314285613,1708156242085,-965.47916117,0.00042,7]
[314285614,1708156242094,-338.5789,0.00042,59]
[314285615,1708156242103,-200.0,0.00042,30]
[314285616,1708156242112,-316.03132048,0.00042,2]
[314285617,1708156242121,-8722.5118314,0.00042,2]
[314285618,1708156242130,-1231.24686331,0.00042,120]
[314285619,1708156242139,-77734.89324601,0.00042,4]
[314285620,1708156242148,-447.52311601,0.00042,4]
[314285621,1708156242157,-200.64337833,0.00042,2]
[314285622,1708156242166,-1297.63261035,0.0004201,2]
[314285623,1708156242175,-4828.2846523,0.0004202,2]
[314285624,1708156242185,-5634.9780083,0.0004202,2]
[314285625,1708156242194,-181.45034987,0.00042049,30]
[314285626,1708156242204,-81071.8887111,0.00042102,8]
[314285627,1708156242213,-3572.58295112,0.00042112,120]
[314285628,1708156242222,-478.11,0.00042113,2]
[314285629,1708156242231,-2000.0,0.00042218,7]
[314285630,1708156242240,-200.0,0.00042218,7]
[314285631,1708156242249,-200.0,0.00042218,7]
[314285632,1708156242258,-171.0,0.00042244,7]
[314285633,1708156242267,-203.85,0.00042406,2]
[314285634,1708156242276,-2000.0,0.00042417,7]
[314285635,1708156242285,-200.0,0.00042417,7]
[314285636,1708156242294,-2000.0,0.00042417,7]
[314285637,1708156242304,-200.0,0.00042417,7]
[314285638,1708156242314,-154.3,0.00042448,2]
[314285639,1708156242323,-682.52,0.00042578,2]
[314285640,1708156242332,-2000.0,0.0004264,7]
[314285641,1708156242342,-200.0,0.0004264,7]
[314285642,1708156242351,-511.96141677,0.0004269,17]
[314285643,1708156242361,-210.0,0.00042709,2]
[314285644,1708156242370,-205.0,0.00042778,11]
[314285645,1708156242379,-171.0,0.00042792,7]
[314285646,1708156242389,-81071.8887111,0.00042809,9]
[314285647,1708156242399,-264348.20538451,0.00042819,5]
[314285648,1708156242409,-2000.0,0.00042841,7]
[314285649,1708156242419,-200.0,0.00042841,7]
[314285650,1708156242428,-2000.0,0.00042841,7]
[314285651,1708156242438,-200.0,0.00042841,7]
[314285652,1708156242447,-3444.48866904,0.00042888,32]
[314285653,1708156242456,-730.0589355,0.00042897,10]
[314285654,1708156242466,-183.59457966,0.00042898,120]
[314285655,1708156242475,-156.37430266,0.00042898,2]
[314285656,1708156242484,-6042.07108627,0.000429,5]
[314285657,1708156242493,-898.0,0.000429,30]
[314285658,1708156242502,-347.0,0.000429,30]
[314285659,1708156242512,-1000.0,0.000429,30]
[314285660,1708156242521,-922.3,0.000429,30]
[314285661,1708156242530,-162143.777422,0.00042988,10]
[314285662,1708156242540,-330750.26468739,0.00042998,3]
[314285663,1708156242549,-210.22637544,0.00042998,2]
[314285664,1708156242558,-7133.56027946,0.00042998,2]
[314285665,1708156242568,-423.79,0.00043049,15]
[314285666,1708156242577,-2000.0,0.00043067,7]
[314285667,1708156242586,-200.0,0.00043067,7]
[314285668,1708156242596,-1165.05509336,0.00043079,5]
[314285669,1708156242605,-166.05101382,0.00043146,30]
[314285670,1708156242615,-555.0,0.000432,2]
[314285671,1708156242625,-180.0,0.00043208,2]
[314285672,1708156242636,-156.62,0.0004323,2]
[314285673,1708156242646,-10229.38164732,0.00043261,5]
[314285674,1708156242655,-2000.0,0.0004327,7]
[314285675,1708156242666,-200.0,0.0004327,7]
[314285676,1708156242676,-2000.0,0.0004327,7]
[314285677,1708156242684,-200.0,0.0004327,7]
[314285678,1708156242694,-2000.0,0.000433,2]
[314285679,1708156242703,-780.20176904,0.00043307,11]
[314285680,1708156242714,-171.0,0.0004334,7]
[314285681,1708156242723,-166.05101382,0.00043379,30]
[314285682,1708156242733,-154.3,0.00043386,2]
[314285683,1708156242743,-511.96141677,0.00043431,18]
[314285684,1708156242752,-196.24,0.00043457,2]
[314285685,1708156242761,-154.3,0.00043459,2]
[314285686,1708156242771,-482.10180201,0.00043481,60]
[314285687,1708156242781,-200.0,0.00043497,7]
[314285688,1708156242791,-81071.8887111,0.00043692,10]
[314285689,1708156242801,-2000.0,0.00043702,7]
[314285690,1708156242810,-200.0,0.00043702,7]
[314285691,1708156242819,-2000.0,0.00043702,7]
[314285692,1708156242829,-200.0,0.00043702,7]
[314285693,1708156242839,-5000.0,0.0004388,3]
[314285694,1708156242848,-203.85,0.00043885,2]
[314285695,1708156242858,-171.0,0.00043888,7]
[314285696,1708156242867,-200.0,0.00044,30]
[314285697,1708156242876,-24401.30906045,0.00044,2]
[314285698,1708156242886,-1873.9865275,0.00044,4]
[314285699,1708156242895,-7288.36148334,0.00044,8]
[314285700,1708156242905,-158.23203844,0.00044048,30]
[314285701,1708156242914,-22688.5956893,0.00044091,2]
[314285702,1708156242923,-511.96141677,0.00044172,19]
[314285703,1708156242933,-166.05101382,0.0004419,30]
[314285704,1708156242943,-682.52,0.00044222,2]
[314285705,1708156242952,-478.11,0.00044377,2]
[314285706,1708156242962,-150.0,0.00044392,2]
[314285707,1708156242971,-181.935,0.00044392,2]
[314285708,1708156242980,-206.228,0.00044392,2]
[314285709,1708156242990,-211.956,0.00044392,2]
[314285710,1708156242999,-150.0,0.00044392,2]
[314285711,1708156243009,-150.281,0.00044392,2]
[314285712,1708156243020,-150.0,0.00044392,2]
[314285713,1708156243029,-6042.07108627,0.000444,6]
[314285714,1708156243038,-171.0,0.00044436,7]
[314285716,1708156243047,-800.0,0.00044444,2]
[314285718,1708156243056,-154.3,0.00044469,2]
[314285719,1708156243066,-205.0,0.000445,16]
[314285720,1708156243077,-200.0,0.00044645,2]
[314285721,1708156243087,-1165.05509336,0.00044658,5]
[314285722,1708156243096,-153.50306325,0.0004468,24]
[314285723,1708156243105,-158.23203844,0.0004474,30]
[314285724,1708156243114,-1013.0,0.000448,7]
[314285725,1708156243124,-1202.0,0.000449,30]
[314285728,1708156243134,-511.96141677,0.00044913,20]
[314285730,1708156243143,-171.0,0.00044984,7]
[314285731,1708156243152,-214.67526642,0.00044989,2]
[314285732,1708156243162,-197.24969849,0.00044999,2]
[314285733,1708156243171,-277.28474236,0.00044999,2]
[314285734,1708156243180,-976.12124698,0.00044999,2]
[314285735,1708156243190,-191.65826992,0.00044999,2]
[314285736,1708156243199,-4833.78305591,0.00045,17]
[314285737,1708156243208,-28689.40793652,0.00045,10]
[314285739,1708156243217,-155.0,0.00045,7]
[314285741,1708156243226,-154.9,0.00045,5]
[314285742,1708156243236,-154.9,0.00045,5]
[314285743,1708156243245,-153.54,0.00045,5]
[314285744,1708156243255,-153.54,0.00045,5]
[314285745,1708156243264,-153.54,0.00045,5]
[314285746,1708156243273,-153.54,0.00045,5]
[314285747,1708156243282,-153.54,0.00045,5]
[314285748,1708156243291,-153.54,0.00045,5]
[314285749,1708156243301,-153.54,0.00045,5]
[314285750,1708156243310,-153.54,0.00045,5]
[314285751,1708156243319,-153.54,0.00045,5]
[314285752,1708156243328,-153.54,0.00045,5]
[314285753,1708156243337,-153.54,0.00045,5]
[314285754,1708156243346,-153.54,0.00045,5]
[314285755,1708156243356,-153.54,0.00045,5]
[314285756,1708156243366,-153.54,0.00045,5]
[314285757,1708156243375,-153.54,0.00045,5]
[314285758,1708156243384,-162.74,0.00045023,2]
[314285759,1708156243393,-81071.8887111,0.00045089,10]
[314285760,1708156243403,-1369.0,0.00045099,2]
[314285761,1708156243413,-2690.0,0.00045099,2]
[314285762,1708156243422,-1865.0,0.00045099,2]
[314285763,1708156243432,-956.618,0.00045099,2]
[314285764,1708156243441,-456.388,0.00045099,2]
[314285765,1708156243450,-710.472,0.00045099,2]
[314285766,1708156243459,-850.0,0.00045099,2]
[314285767,1708156243468,-543.505,0.00045099,2]
[314285768,1708156243477,-152.177,0.00045099,2]
[314285769,1708156243486,-350.154,0.00045099,2]
[314285770,1708156243496,-1276.876,0.00045099,2]
[314285771,1708156243504,-1319.0,0.00045099,2]
[314285772,1708156243513,-1949.0,0.00045099,2]
[314285773,1708156243522,-451.615,0.00045099,2]
[314285774,1708156243531,-1022.794,0.00045099,2]
[314285775,1708156243541,-982.869,0.00045099,2]
[314285776,1708156243550,-245.51,0.00045099,2]
[314285777,1708156243559,-2871.0,0.00045099,2]
[314285778,1708156243568,-151.039,0.00045099,2]
[314285779,1708156243577,-421.667,0.00045099,2]
[314285780,1708156243586,-324.602,0.00045099,2]
[314285781,1708156243595,-1138.0,0.00045099,2]
[314285782,1708156243604,-454.0,0.00045099,2]
[314285783,1708156243614,-399.937,0.00045099,2]
[314285784,1708156243623,-7419.0,0.00045099,2]
[314285785,1708156243633,-2290.0,0.00045099,2]
[314285786,1708156243645,-4099.0,0.00045099,2]
[314285787,1708156243654,-38388.357,0.00045099,2]
[314285788,1708156243664,-8199.896,0.00045099,2]
[314285789,1708156243673,-2916.044,0.00045099,2]
[314285790,1708156243682,-2928.0,0.00045099,2]
[314285791,1708156243691,-19853.0,0.00045099,2]
[314285792,1708156243701,-151.302,0.00045099,2]
[314285793,1708156243710,-180.0,0.00045099,2]
[314285794,1708156243720,-150.0,0.00045099,2]
[314285795,1708156243730,-150.0,0.00045099,2]
[314285796,1708156243739,-1079.56,0.00045099,2]
[314285797,1708156243749,-164.113,0.00045099,2]
[314285798,1708156243758,-164.82,0.00045112,2]
[314285799,1708156243768,-780.20176904,0.00045113,12]
[314285800,1708156243778,-201.8018,0.0004514,30]
[314285801,1708156243787,-203.85,0.00045364,2]
[314285802,1708156243796,-158.23203844,0.00045376,30]
[314285803,1708156243806,-171.0,0.00045532,30]
[314285804,1708156243815,-511.96141677,0.00045654,21]
[314285805,1708156243825,-152.0,0.00045809,4]
[314285806,1708156243835,-682.52,0.00045866,2]
[314285807,1708156243844,-6042.07108627,0.000459,7]
[314285808,1708156243853,-19999.99,0.00045931,2]
[314285809,1708156243863,-14288.5,0.00045931,2]
[314285810,1708156243873,-2000.0,0.00046,2]
[314285811,1708156243882,-171.0,0.00046079,30]
[314285812,1708156243892,-152.49751534,0.00046098,60]
[314285813,1708156243902,-179.021767,0.00046148,88]
[314285814,1708156243913,-205.0,0.00046222,21]
[314285815,1708156243923,-1165.05509336,0.00046237,5]
[314285816,1708156243932,-511.96141677,0.00046395,22]
[314285817,1708156243942,-173.021788,0.00046448,88]
[314285818,1708156243952,-327.0875,0.00046575,7]
[314285819,1708156243962,-1505.5599939,0.000466,2]
[314285820,1708156243971,-1465.0,0.000466,2]
[314285821,1708156243981,-171.0,0.00046627,30]
[314285822,1708156243990,-478.11,0.0004664,2]
[314285823,1708156243999,-1898.0,0.000467,115]
[314285824,1708156244009,-179.021767,0.00046748,88]
[314285825,1708156244018,-423.79,0.00046785,120]
[314285826,1708156244027,-500.0,0.00046799,2]
[314285827,1708156244036,-500.0,0.00046799,2]
[314285828,1708156244045,-500.0,0.00046799,2]
[314285829,1708156244054,-500.0,0.00046799,2]
[314285830,1708156244063,-500.0,0.00046799,2]
[314285831,1708156244072,-500.0,0.00046799,2]
[314285832,1708156244081,-500.0,0.00046799,2]
[314285833,1708156244090,-500.0,0.00046799,2]
[314285834,1708156244100,-500.0,0.00046799,2]
[314285835,1708156244109,-500.0,0.00046799,2]
[314285836,1708156244118,-500.0,0.00046799,2]
[314285837,1708156244127,-500.0,0.00046799,2]
[314285838,1708156244136,-500.0,0.00046799,2]
[314285839,1708156244145,-500.0,0.00046799,2]
[314285840,1708156244154,-500.0,0.00046799,2]
[314285841,1708156244165,-500.0,0.00046799,2]
[314285842,1708156244174,-2411.5829,0.000468,10]
[314285843,1708156244183,-780.20176904,0.0004692,13]
[314285844,1708156244192,-200.0,0.00047,60]
[314285845,1708156244202,-511.96141677,0.00047136,22]
[314285846,1708156244211,-173.021788,0.00047148,93]
[314285847,1708156244221,-171.0,0.00047175,30]
[314285848,1708156244230,-166.05101382,0.00047271,30]
[314285849,1708156244239,-81071.8887111,0.00047382,11]
[314285850,1708156244249,-150.0,0.00047392,2]
[314285851,1708156244258,-150.0,0.00047392,2]
[314285852,1708156244268,-150.0,0.00047392,2]
[314285853,1708156244278,-654.175,0.00047397,7]
[314285854,1708156244287,-166.4,0.000474,7]
[314285855,1708156244296,-6042.07108627,0.000474,9]
[314285856,1708156244306,-196.24,0.00047407,2]
[314285857,1708156244315,-153.50306325,0.00047412,34]
[314285858,1708156244324,-179.021767,0.00047448,93]
[314285859,1708156244333,-682.52,0.0004751,2]
[314285860,1708156244343,-1000.0,0.000477,19]
[314285861,1708156244352,-171.0,0.00047723,30]
[314285862,1708156244361,-173.021788,0.00047748,93]
[314285863,1708156244371,-8281.603815,0.000478,30]
[314285864,1708156244380,-5917.338367,0.000478,30]
[314285865,1708156244390,-1165.05509336,0.00047816,5]
[314285866,1708156244399,-511.96141677,0.00047877,23]
[314285867,1708156244407,-205.0,0.00047945,26]
[314285868,1708156244418,-15655.37453229,0.00048,30]
[314285869,1708156244427,-335.27002736,0.00048,48]
[314285870,1708156244436,-1290.966,0.00048099,2]
[314285871,1708156244445,-2690.0,0.00048099,2]
[314285872,1708156244454,-1865.0,0.00048099,2]
[314285873,1708156244463,-953.0,0.00048099,2]
[314285874,1708156244473,-708.0,0.00048099,2]
[314285875,1708156244482,-842.0,0.00048099,2]
[314285876,1708156244491,-216.0,0.00048099,2]
[314285877,1708156244500,-1255.0,0.00048099,2]
[314285878,1708156244509,-1231.0,0.00048099,2]
[314285879,1708156244518,-1949.0,0.00048099,2]
[314285880,1708156244527,-429.0,0.00048099,2]
[314285881,1708156244536,-1005.0,0.00048099,2]
[314285882,1708156244546,-858.0,0.00048099,2]
[314285883,1708156244556,-237.0,0.00048099,2]
[314285884,1708156244565,-2871.0,0.00048099,2]
[314285885,1708156244575,-150.0,0.00048099,2]
[314285886,1708156244584,-343.0,0.00048099,2]
[314285887,1708156244594,-321.0,0.00048099,2]
[314285888,1708156244603,-1138.0,0.00048099,2]
[314285889,1708156244612,-454.0,0.00048099,2]
[314285890,1708156244621,-389.0,0.00048099,2]
[314285891,1708156244632,-7419.0,0.00048099,2]
[314285892,1708156244643,-2290.0,0.00048099,2]
[314285893,1708156244653,-4099.0,0.00048099,2]
[314285894,1708156244663,-8166.0,0.00048099,2]
[314285895,1708156244673,-2928.0,0.00048099,2]
[314285896,1708156244682,-19853.0,0.00048099,2]
[314285897,1708156244692,-150.0,0.00048099,2]
[314285898,1708156244702,-1037.0,0.00048099,2]
[314285899,1708156244711,-166.4,0.000481,7]
[314285900,1708156244723,-179.021788,0.00048148,94]
[314285901,1708156244852,-154.9,0.000482,6]
[314285902,1708156244863,-154.9,0.000482,6]
[314285903,1708156244873,-153.54,0.000482,6]
[314285904,1708156244882,-153.54,0.000482,6]
[314285905,1708156244892,-153.54,0.000482,6]
[314285906,1708156244902,-153.54,0.000482,6]
[314285907,1708156244913,-153.54,0.000482,6]
[314285908,1708156244922,-153.54,0.000482,6]
[314285909,1708156244932,-153.54,0.000482,6]
[314285910,1708156244941,-153.54,0.000482,6]
[314285911,1708156244950,-153.54,0.000482,6]
[314285912,1708156244960,-153.54,0.000482,6]
[314285913,1708156244969,-153.54,0.000482,6]
[314285914,1708156244979,-153.54,0.000482,6]
[314285915,1708156244988,-153.54,0.000482,6]
[314285916,1708156244997,-153.54,0.000482,6]
[314285917,1708156245007,-153.54,0.000482,6]
[314285918,1708156245016,-981.2625,0.00048219,7]
[314285919,1708156245025,-171.0,0.00048271,30]
[314285920,1708156245034,-173.021788,0.00048448,94]
[314285921,1708156245043,-511.96141677,0.00048618,24]
[314285922,1708156245052,-166.4,0.000487,7]
[314285923,1708156245061,-780.20176904,0.00048726,13]
[314285924,1708156245070,-179.021788,0.00048748,94]
[314285925,1708156245079,-2000.0,0.000488,2]
[314285926,1708156245089,-105571.79682515,0.000488,7]
[314285927,1708156245098,-171.0,0.00048819,30]
[314285928,1708156245107,-7500.0,0.0004888,30]
[314285929,1708156245116,-6042.07108627,0.000489,10]
[314285930,1708156245125,-1831.82,0.00048904,2]
[314285931,1708156245134,-478.11,0.00048904,2]
[314285932,1708156245143,-3978.8181256,0.00048966,2]
[314285933,1708156245151,-4643.5855073,0.00048966,2]
[314285934,1708156245161,-705093.36758419,0.00048975,8]
[314285935,1708156245347,-329499.38102937,0.00048975,8]
[314285936,1708156245359,-260462.69840913,0.00048975,8]
[314285937,1708156245393,-3973.50694195,0.00048975,8]
[314285938,1708156245441,-500.0,0.00046799,2]
[314285939,1708156245451,-493.17,0.00048975,8]
[314285940,1708156245646,-151.561,0.00045099,2]
[314285941,1708156245657,-180.537,0.00045099,2]
[314285942,1708156245667,-2214.47602659,0.00045204,7]
[314285943,1708156245680,-1095.62853471,0.00045204,7]
[314285944,1708156245716,-6021.77266381,0.00045204,7]
[314285945,1708156245747,-897.50442221,0.00045204,7]
[314285946,1708156245757,-500.0,0.00046799,2]
[314285947,1708156245766,-500.0,0.00046799,2]
[314285948,1708156245776,-500.0,0.00046799,2]
[314285949,1708156245786,-500.0,0.00046799,2]
[314285950,1708156245795,-500.0,0.00046799,2]
[314285951,1708156245804,-500.0,0.00046799,2]